fUST/lending_fUST_20250209
["ID","MTS","AMOUNT","RATE_DAILY","PERIOD"]
[352298975,1739031044905,-1699.26,0.0001178,2]
[352298976,1739031044914,-680.72,0.0001178,2]
[352298977,1739031044924,-536.42,0.0001178,2]
[352298978,1739031044933,-1071.57,0.0001178,2]
[352298979,1739031044942,-500.0,0.0001178,2]
[352298980,1739031044952,-500.0,0.00011784,2]
[352298981,1739031044961,-1951.8006584,0.00011797,2]
[352298982,1739031044971,-151.0,0.000118,2]
[352298983,1739031044980,-5453.0,0.000118,2]
[352298984,1739031044990,-151.0,0.0001189,2]
[352298985,1739031044999,-153.0,0.0001189,2]
[352298986,1739031045009,-4000.0,0.000119,2]
[352298987,1739031045018,-1444.046464,0.000119,2]
[352298988,1739031045027,-1444.046464,0.000119,2]
[352298989,1739031045037,-157.53,0.000119,2]
[352298990,1739031045046,-157.53,0.000119,2]
[352298991,1739031045056,-240.041953,0.000119,2]
[352298992,1739031045065,-151.0,0.000119,2]
[352298993,1739031045075,-240.041953,0.000119,2]
[352298994,1739031045083,-388.32378349,0.00011916,2]
[352298995,1739031045093,-622.89,0.00011916,2]
[352298996,1739031045102,-847.04,0.00011916,2]
[352298997,1739031045112,-221.193091,0.00011917,2]
[352298998,1739031045122,-221.193091,0.00011917,2]
[352298999,1739031045131,-367.989328,0.00011917,2]
[352299000,1739031045140,-367.989328,0.00011917,2]
[352299001,1739031045150,-212.702218,0.00011917,2]
[352299002,1739031045159,-212.702218,0.00011917,2]
[352299003,1739031045168,-151.0,0.00011917,2]
[352299004,1739031045178,-151.0,0.00011917,2]
[352299005,1739031045188,-151.0,0.00011917,2]
[352299006,1739031045197,-224.37986,0.00011917,2]
[352299007,1739031045207,-500.0,0.00011917,2]
[352299008,1739031045216,-552.84,0.00011917,2]
[352299009,1739031045226,-500.0,0.00011917,2]
[352299010,1739031045235,-245.908531,0.00011917,2]
[352299011,1739031045244,-245.908531,0.00011917,2]
[352299012,1739031045253,-500.0,0.00011917,2]
[352299013,1739031045263,-151.0,0.00011917,2]
[352299014,1739031045272,-500.0,0.00011917,2]
[352299015,1739031045282,-500.0,0.00011917,2]
[352299016,1739031045292,-151.0,0.00011917,2]
[352299017,1739031045302,-1112.54,0.00011917,2]
[352299018,1739031045311,-500.0,0.00011917,2]
[352299020,1739031045320,-241.82125,0.00011917,2]
[352299022,1739031045330,-500.0,0.00011917,2]
[352299024,1739031045340,-241.82125,0.00011917,2]
[352299025,1739031045350,-1260.26,0.00011917,2]
[352299026,1739031045360,-485.164348,0.00011917,2]
[352299027,1739031045375,-409.83,0.00011917,2]
[352299028,1739031045385,-1280.55,0.00011917,2]
[352299030,1739031045395,-485.164348,0.00011917,2]
[352299031,1739031045405,-500.0,0.00011917,2]
[352299032,1739031045415,-765.67,0.00011917,2]
[352299033,1739031045426,-500.0,0.00011917,2]
[352299034,1739031045436,-247.258037,0.00011917,2]
[352299035,1739031045447,-247.258037,0.00011917,2]
[352299036,1739031045457,-534.28,0.00011917,2]
[352299037,1739031045466,-500.0,0.00011917,2]
[352299038,1739031045476,-1194.55,0.00011917,2]
[352299039,1739031045486,-912.94,0.00011917,2]
[352299040,1739031045496,-500.0,0.00011917,2]
[352299041,1739031045506,-701.018518,0.00011917,2]
[352299042,1739031045516,-701.018518,0.00011917,2]
[352299043,1739031045526,-500.0,0.00011917,2]
[352299044,1739031045536,-862.82,0.00011917,2]
[352299045,1739031045546,-538.09,0.00011917,2]
[352299046,1739031045556,-879.17,0.00011917,2]
[352299047,1739031045566,-175.03,0.00011917,2]
[352299048,1739031045575,-151.0,0.00011917,2]
[352299049,1739031045586,-151.0,0.00011917,2]
[352299050,1739031045596,-230.860971,0.00011917,2]
[352299051,1739031045605,-958.96,0.00011917,2]
[352299052,1739031045615,-596.02,0.00011917,2]
[352299054,1739031045625,-151.0,0.00011917,2]
[352299055,1739031045635,-230.860971,0.00011917,2]
[352299056,1739031045645,-623.95,0.00011917,2]
[352299057,1739031045655,-503.94,0.00011917,2]
[352299059,1739031045664,-695.754914,0.00011917,2]
[352299061,1739031045675,-244.447562,0.00011917,2]
[352299062,1739031045684,-695.754914,0.00011917,2]
[352299063,1739031045693,-500.0,0.00011917,2]
[352299064,1739031045703,-500.0,0.00011917,2]
[352299065,1739031045712,-235.021606,0.00011917,2]
[352299066,1739031045721,-1450.94,0.00011917,2]
[352299067,1739031045731,-235.021606,0.00011917,2]
[352299068,1739031045740,-584.62455967,0.00011917,2]
[352299069,1739031045750,-721.65,0.00011917,2]
[352299070,1739031045759,-151.0,0.00011917,2]
[352299071,1739031045768,-11962.76,0.00011917,2]
[352299072,1739031045777,-1109.42,0.00011917,2]
[352299073,1739031045787,-279.192907,0.00011917,2]
[352299074,1739031045797,-500.0,0.00011917,2]
[352299075,1739031045807,-3515.82,0.00011917,2]
[352299076,1739031045816,-279.192907,0.00011917,2]
[352299077,1739031045826,-500.0,0.00011917,2]
[352299078,1739031045835,-500.0,0.00011917,2]
[352299079,1739031045845,-500.0,0.00011917,2]
[352299080,1739031045856,-500.0,0.00011917,2]
[352299081,1739031045866,-938.64,0.00011917,2]
[352299082,1739031045877,-34530.25,0.00011917,2]
[352299083,1739031045887,-820.49,0.00011917,2]
[352299084,1739031045898,-500.0,0.00011917,2]
[352299085,1739031045908,-1635.51,0.00011917,2]
[352299086,1739031045918,-6867.1,0.00011917,2]
[352299087,1739031045927,-381.115572,0.00011917,2]
[352299088,1739031045937,-540.34080785,0.00011917,2]
[352299089,1739031045995,-232.80919215,0.00011917,2]
[352299090,1739031046005,-381.115572,0.00011917,2]
[352299091,1739031046014,-97.09523585,0.00011917,2]
[352299104,1739031046267,-253.94316365,0.00011643,2]
[352299105,1739031048753,-1.10005322,0.00011643,2]
[352299106,1739031048910,-140.95678313,0.00011643,2]
[352299107,1739031048922,-1051.92476415,0.00011917,2]
[352299108,1739031048932,-500.0,0.00011917,2]
[352299109,1739031048942,-170.847768,0.00011917,2]
[352299110,1739031048952,-170.847768,0.00011917,2]
[352299111,1739031048962,-500.0,0.00011917,2]
[352299112,1739031048973,-526.99,0.00011917,2]
[352299113,1739031048982,-2901.65,0.00011917,2]
[352299114,1739031048993,-730.14,0.00011917,2]
[352299115,1739031049003,-12425.3,0.00011917,2]
[352299116,1739031049014,-3300.97,0.00011917,2]
[352299117,1739031049025,-1535.55,0.00011917,2]
[352299118,1739031049036,-1327.64,0.00011917,2]
[352299119,1739031049045,-2126.0,0.00011917,2]
[352299120,1739031049057,-760.93,0.00011917,2]
[352299121,1739031049068,-798.89,0.00011917,2]
[352299122,1739031049078,-4022.93,0.00011917,2]
[352299123,1739031049090,-559.27,0.00011917,2]
[352299124,1739031049101,-2648.19,0.00011917,2]
[352299125,1739031049111,-500.0,0.00011917,2]
[352299126,1739031049122,-500.0,0.00011917,2]
[352299127,1739031049132,-500.0,0.00011917,2]
[352299128,1739031049143,-500.0,0.00011917,2]
[352299129,1739031049153,-1188.42,0.00011917,2]
[352299130,1739031049164,-894.85,0.00011917,2]
[352299131,1739031049174,-838.0,0.00011917,2]
[352299132,1739031049185,-500.0,0.00011917,2]
[352299133,1739031049195,-3094.71,0.00011917,2]
[352299134,1739031049206,-2962.45,0.00011917,2]
[352299135,1739031049216,-500.0,0.00011917,2]
[352299136,1739031049227,-1699.26,0.00011917,2]
[352299137,1739031049236,-680.72,0.00011917,2]
[352299138,1739031049246,-536.42,0.00011917,2]
[352299139,1739031049255,-1071.57,0.00011917,2]
[352299140,1739031049265,-500.0,0.00011917,2]
[352299141,1739031049277,-153.0,0.00011945,2]
[352299142,1739031049287,-153.0,0.00011945,2]
[352299143,1739031049296,-153.0,0.00011945,2]
[352299144,1739031049306,-500.0,0.00011973,2]
[352299145,1739031049316,-511.71832837,0.00011973,2]
[352299146,1739031049325,-10979.0,0.00012,2]
[352299147,1739031049335,-2000.0,0.00012,2]
[352299148,1739031049345,-2000.0,0.00012,2]
[352299149,1739031049355,-1000.0,0.00012,12]
[352299150,1739031049365,-95366.81408861,0.00012,2]
[352299151,1739031049377,-151.0,0.00012,2]
[352299152,1739031049387,-151.0,0.00012,2]
[352299153,1739031049397,-151.0,0.00012,2]
[352299154,1739031049407,-151.0,0.00012,2]
[352299155,1739031049416,-151.0,0.00012,2]
[352299156,1739031049431,-1444.046464,0.00012,2]
[352299157,1739031049441,-1444.046464,0.00012,2]
[352299158,1739031049452,-157.53,0.00012,2]
[352299159,1739031049462,-157.53,0.00012,2]
[352299160,1739031049473,-240.041953,0.00012,2]
[352299161,1739031049482,-151.0,0.00012,2]
[352299162,1739031049492,-240.041953,0.00012,2]
[352299163,1739031049502,-472.92493803,0.00012005,2]
[352299164,1739031049511,-2400.0,0.00012009,2]
[352299165,1739031049521,-668.904,0.00012009,2]
[352299166,1739031049530,-523.18412121,0.0001201,2]
[352299167,1739031049540,-420.0,0.00012041,2]
[352299168,1739031049550,-235.021606,0.00012053,2]
[352299169,1739031049560,-235.021606,0.00012053,2]
[352299170,1739031049569,-381.115572,0.00012053,2]
[352299171,1739031049578,-381.115572,0.00012053,2]
[352299172,1739031049588,-170.847768,0.00012053,2]
[352299173,1739031049598,-170.847768,0.00012053,2]
[352299174,1739031049607,-622.89,0.00012053,2]
[352299175,1739031049616,-847.04,0.00012053,2]
[352299176,1739031049626,-151.0,0.00012054,2]
[352299177,1739031049636,-151.0,0.00012054,2]
[352299178,1739031049645,-151.0,0.00012054,2]
[352299179,1739031049655,-221.193091,0.00012054,2]
[352299180,1739031049664,-221.193091,0.00012054,2]
[352299181,1739031049674,-367.989328,0.00012054,2]
[352299182,1739031049684,-367.989328,0.00012054,2]
[352299183,1739031049693,-212.702218,0.00012054,2]
[352299184,1739031049703,-212.702218,0.00012054,2]
[352299185,1739031049713,-151.0,0.00012054,2]
[352299186,1739031049723,-151.0,0.00012054,2]
[352299187,1739031049733,-150.17,0.00012054,2]
[352299188,1739031049742,-500.0,0.00012054,2]
[352299189,1739031049752,-552.84,0.00012054,2]
[352299190,1739031049761,-442.95369119,0.00012054,2]
[352299191,1739031049771,-245.908531,0.00012054,2]
[352299192,1739031049780,-245.908531,0.00012054,2]
[352299193,1739031049790,-500.0,0.00012054,2]
[352299194,1739031049799,-500.0,0.00012054,2]
[352299195,1739031049809,-500.0,0.00012054,2]
[352299196,1739031049821,-151.0,0.00012054,2]
[352299197,1739031049831,-491.74,0.00012054,2]
[352299198,1739031049841,-241.82125,0.00012054,2]
[352299199,1739031049850,-528.29593004,0.00012054,2]
[352299200,1739031049860,-241.82125,0.00012054,2]
[352299201,1739031049869,-1260.26,0.00012054,2]
[352299202,1739031049879,-485.164348,0.00012054,2]
[352299203,1739031049892,-1280.55,0.00012054,2]
[352299204,1739031049902,-485.164348,0.00012054,2]
[352299205,1739031049913,-500.0,0.00012054,2]
[352299206,1739031049923,-765.67,0.00012054,2]
[352299207,1739031049933,-500.0,0.00012054,2]
[352299208,1739031049943,-247.258037,0.00012054,2]
[352299209,1739031049954,-247.258037,0.00012054,2]
[352299210,1739031049964,-534.28,0.00012054,2]
[352299211,1739031049974,-500.0,0.00012054,2]
[352299212,1739031049984,-1194.55,0.00012054,2]
[352299213,1739031049994,-912.94,0.00012054,2]
[352299214,1739031050004,-500.0,0.00012054,2]
[352299215,1739031050014,-701.018518,0.00012054,2]
[352299216,1739031050024,-701.018518,0.00012054,2]
[352299217,1739031050034,-500.0,0.00012054,2]
[352299218,1739031050044,-862.82,0.00012054,2]
[352299219,1739031050054,-538.09,0.00012054,2]
[352299220,1739031050063,-879.17,0.00012054,2]
[352299221,1739031050074,-151.0,0.00012054,2]
[352299222,1739031050083,-230.860971,0.00012054,2]
[352299223,1739031050094,-958.96,0.00012054,2]
[352299224,1739031050103,-596.02,0.00012054,2]
[352299225,1739031050114,-151.0,0.00012054,2]
[352299226,1739031050124,-230.860971,0.00012054,2]
[352299227,1739031050134,-623.95,0.00012054,2]
[352299228,1739031050143,-503.94,0.00012054,2]
[352299229,1739031050153,-695.754914,0.00012054,2]
[352299230,1739031050163,-695.754914,0.00012054,2]
[352299231,1739031050172,-244.447562,0.00012054,2]
[352299232,1739031050182,-150.12,0.00012054,2]
[352299233,1739031050191,-500.0,0.00012054,2]
[352299234,1739031050202,-150.12,0.00012054,2]
[352299235,1739031050211,-500.0,0.00012054,2]
[352299236,1739031050222,-235.021606,0.00012054,2]
[352299237,1739031050232,-1450.94,0.00012054,2]
[352299238,1739031050241,-235.021606,0.00012054,2]
[352299239,1739031050251,-721.65,0.00012054,2]
[352299240,1739031050261,-151.0,0.00012054,2]
[352299241,1739031050270,-151.0,0.00012054,2]
[352299242,1739031050280,-11962.76,0.00012054,2]
[352299243,1739031050289,-1109.42,0.00012054,2]
[352299244,1739031050298,-279.192907,0.00012054,2]
[352299245,1739031050309,-500.0,0.00012054,2]
[352299246,1739031050319,-3515.82,0.00012054,2]
[352299247,1739031050328,-148.8979116,0.00012054,2]
[352299248,1739031050374,-130.2949954,0.00012054,2]
[352299249,1739031050385,-500.0,0.00012054,2]
[352299250,1739031050394,-500.0,0.00012054,2]
[352299251,1739031050404,-203.88748501,0.00012054,2]
[352299252,1739031050418,-296.11251499,0.00012054,2]
[352299253,1739031050428,-500.0,0.00012054,2]
[352299254,1739031050438,-938.64,0.00012054,2]
[352299255,1739031050450,-1068.60510369,0.00012054,2]
[352299256,1739031050515,-33461.64489631,0.00012054,2]
[352299257,1739031050525,-820.49,0.00012054,2]
[352299258,1739031050535,-500.0,0.00012054,2]
[352299259,1739031050545,-1635.51,0.00012054,2]
[352299260,1739031050555,-6867.1,0.00012054,2]
[352299261,1739031050564,-381.115572,0.00012054,2]
[352299262,1739031050574,-773.15,0.00012054,2]
[352299263,1739031050583,-381.115572,0.00012054,2]
[352299264,1739031050593,-1149.02,0.00012054,2]
[352299265,1739031050603,-500.0,0.00012054,2]
[352299266,1739031050614,-1444.046464,0.00012054,2]
[352299267,1739031050623,-170.847768,0.00012054,2]
[352299268,1739031050632,-1444.046464,0.00012054,2]
[352299269,1739031050642,-170.847768,0.00012054,2]
[352299270,1739031050651,-500.0,0.00012054,2]
[352299271,1739031050660,-500.0,0.00012054,2]
[352299272,1739031050670,-150.12,0.00012054,2]
[352299273,1739031050679,-526.99,0.00012054,2]
[352299274,1739031050689,-2901.65,0.00012054,2]
[352299275,1739031050698,-657.0,0.00012054,2]
[352299276,1739031050708,-730.14,0.00012054,2]
[352299277,1739031050718,-500.0,0.00012054,2]
[352299278,1739031050729,-150.12,0.00012054,2]
[352299279,1739031050740,-150.12,0.00012054,2]
[352299280,1739031050750,-12425.3,0.00012054,2]
[352299281,1739031050761,-3300.97,0.00012054,2]
[352299282,1739031050770,-1535.55,0.00012054,2]
[352299283,1739031050780,-1327.64,0.00012054,2]
[352299284,1739031050789,-157.53,0.00012054,2]
[352299285,1739031050799,-157.53,0.00012054,2]
[352299286,1739031050809,-2126.0,0.00012054,2]
[352299287,1739031050819,-760.93,0.00012054,2]
[352299288,1739031050828,-798.89,0.00012054,2]
[352299289,1739031050838,-4022.93,0.00012054,2]
[352299290,1739031050849,-559.27,0.00012054,2]
[352299291,1739031050859,-1402.96009625,0.00012054,2]
[352299303,1739031303582,-250.0,0.00014027,30]
[352299307,1739031316726,10000.0,0.00015,90]
[352299308,1739031333507,10000.0,0.00015,90]
[352299309,1739031342543,10000.0,0.00015,90]
[352299310,1739031349456,10000.0,0.00015,90]
[352299311,1739031355518,1702.0,0.00015,90]
[352299317,1739031532253,263.0,0.00014,90]
[352299318,1739031549465,8298.0,0.00014,90]
[352299319,1739031572195,10000.0,0.00014,90]
[352299320,1739031581699,10000.0,0.00014,90]
[352299321,1739031590442,10000.0,0.00014,90]
[352299322,1739031597796,10000.0,0.00014,90]
[352299374,1739032232326,-510.21168058,9.235e-05,2]
[352299464,1739032238654,-150.68071942,9.235e-05,2]
[352299465,1739032238664,-2410.26978528,9.328e-05,2]
[352299466,1739032238674,-293.0500468,0.00010007,2]
[352299467,1739032238684,-400.0,0.00010685,2]
[352299468,1739032238693,-287.84595323,0.00010958,2]
[352299469,1739032238705,-212.15404677,0.00010958,2]
[352299470,1739032238714,-500.0,0.00010958,2]
[352299472,1739032238724,-456.5895154,0.00010958,2]
[352299474,1739032238734,-500.0,0.00010958,2]
[352299476,1739032238743,-500.0,0.00010958,2]
[352299478,1739032238752,-500.0,0.00010958,2]
[352299480,1739032238762,-433.01904295,0.00010958,2]
[352299483,1739032238784,-66.98095705,0.00010958,2]
[352299485,1739032238795,-500.0,0.00010958,2]
[352299487,1739032238805,-696.01,0.00010958,2]
[352299489,1739032238814,-500.0,0.00010958,2]
[352299491,1739032238824,-628.11,0.00010958,2]
[352299494,1739032238835,-414.04867786,0.00010958,2]
[352299496,1739032238844,-500.0,0.00010958,2]
[352299498,1739032238854,-500.0,0.00010958,2]
[352299499,1739032238864,-500.0,0.00010958,2]
[352299502,1739032238875,-500.0,0.00010958,2]
[352299503,1739032238885,-722.74,0.00010958,2]
[352299505,1739032238895,-500.0,0.00010958,2]
[352299507,1739032238904,-500.0,0.00010958,2]
[352299509,1739032238915,-500.0,0.00010958,2]
[352299511,1739032238924,-500.0,0.00010958,2]
[352299514,1739032238934,-500.0,0.00010958,2]
[352299516,1739032238944,-500.0,0.00010958,2]
[352299518,1739032238953,-799.13,0.00010958,2]
[352299519,1739032238963,-500.0,0.00010958,2]
[352299522,1739032238972,-500.0,0.00010958,2]
[352299524,1739032238982,-500.0,0.00010958,2]
[352299525,1739032238991,-500.0,0.00010958,2]
[352299527,1739032239000,-500.0,0.00010958,2]
[352299529,1739032239010,-500.0,0.00010958,2]
[352299531,1739032239019,-500.0,0.00010958,2]
[352299533,1739032239029,-500.0,0.00010958,2]
[352299535,1739032239038,-500.0,0.00010958,2]
[352299538,1739032239047,-500.0,0.00010958,2]
[352299539,1739032239057,-500.0,0.00010958,2]
[352299541,1739032239067,-506.06,0.00010958,2]
[352299543,1739032239076,-358.17523297,0.00010958,2]
[352299546,1739032239085,-500.0,0.00010958,2]
[352299548,1739032239095,-500.0,0.00010958,2]
[352299549,1739032239105,-924.52,0.00010958,2]
[352299551,1739032239114,-557.77,0.00010958,2]
[352299554,1739032239124,-500.0,0.00010958,2]
[352299556,1739032239133,-738.88,0.00010958,2]
[352299558,1739032239143,-500.0,0.00010958,2]
[352299560,1739032239152,-745.71,0.00010958,2]
[352299562,1739032239161,-500.0,0.00010958,2]
[352299563,1739032239170,-500.0,0.00010958,2]
[352299565,1739032239179,-2468.71,0.00010958,2]
[352299568,1739032239189,-500.0,0.00010958,2]
[352299570,1739032239201,-1209.12,0.00010958,2]
[352299572,1739032239210,-6865.65706811,0.00010958,2]
[352299574,1739032239222,-22291.75293189,0.00010958,2]
[352299576,1739032239231,-1416.05,0.00010958,2]
[352299578,1739032239241,-500.0,0.00010958,2]
[352299580,1739032239250,-500.0,0.00010958,2]
[352299582,1739032239260,-892.97,0.00010958,2]
[352299584,1739032239269,-500.0,0.00010958,2]
[352299586,1739032239279,-9968.97,0.00010958,2]
[352299588,1739032239288,-500.0,0.00010958,2]
[352299590,1739032239298,-500.0,0.00010958,2]
[352299592,1739032239308,-1362.93,0.00010958,2]
[352299594,1739032239318,-500.0,0.00010958,2]
[352299596,1739032239327,-3136.36,0.00010958,2]
[352299598,1739032239336,-911.1,0.00010958,2]
[352299600,1739032239346,-500.0,0.00010958,2]
[352299602,1739032239356,-500.0,0.00010958,2]
[352299604,1739032239366,-500.0,0.00010958,2]
[352299606,1739032239375,-1076.6,0.00010958,2]
[352299608,1739032239385,-500.0,0.00010958,2]
[352299610,1739032239395,-990.72,0.00010958,2]
[352299612,1739032239405,-500.0,0.00010958,2]
[352299614,1739032239414,-500.0,0.00010958,2]
[352299616,1739032239424,-711.91,0.00010958,2]
[352299618,1739032239434,-500.0,0.00010958,2]
[352299620,1739032239443,-1333.82,0.00010958,2]
[352299623,1739032239453,-717.12,0.00010958,2]
[352299627,1739032239466,-500.0,0.00010958,2]
[352299630,1739032239476,-500.0,0.00010958,2]
[352299632,1739032239485,-500.0,0.00010958,2]
[352299633,1739032239496,-500.0,0.00010958,2]
[352299635,1739032239506,-608.65562437,0.00010958,2]
[352299637,1739032239515,-500.0,0.00010958,2]
[352299639,1739032239525,-500.0,0.00010958,2]
[352299642,1739032239535,-500.0,0.00010958,2]
[352299645,1739032239545,-500.0,0.00010958,2]
[352299648,1739032239554,-500.0,0.00010958,2]
[352299651,1739032239564,-2297.14,0.00010958,2]
[352299654,1739032239573,-578.03,0.00010958,2]
[352299657,1739032239582,-500.0,0.00010958,2]
[352299660,1739032239591,-500.0,0.00010958,2]
[352299662,1739032239602,-500.0,0.00010958,2]
[352299663,1739032239612,-1051.04,0.00010958,2]
[352299665,1739032239622,-2475.83,0.00010958,2]
[352299667,1739032239631,-500.0,0.00010958,2]
[352299670,1739032239641,-500.0,0.00010958,2]
[352299671,1739032239650,-500.0,0.00010958,2]
[352299674,1739032239660,-318.02772529,0.00010958,2]
[352299676,1739032239669,-909.64,0.00010958,2]
[352299678,1739032239679,-500.0,0.00010958,2]
[352299680,1739032239689,-500.0,0.00010958,2]
[352299682,1739032239698,-5722.58,0.00010958,2]
[352299684,1739032239708,-507.0,0.00010958,2]
[352299686,1739032239717,-1015.58,0.00010958,2]
[352299688,1739032239727,-500.0,0.00010958,2]
[352299690,1739032239737,-500.0,0.00010958,2]
[352299692,1739032239746,-500.0,0.00010958,2]
[352299714,1739032239945,-2712.56,0.00010958,2]
[352299716,1739032239955,-500.0,0.00010958,2]
[352299718,1739032239964,-2148.37,0.00010958,2]
[352299720,1739032239973,-500.0,0.00010958,2]
[352299722,1739032239983,-500.0,0.00010958,2]
[352299724,1739032239992,-10288.63,0.00010958,2]
[352299726,1739032240001,-500.0,0.00010958,2]
[352299728,1739032240011,-1742.18,0.00010958,2]
[352299730,1739032240020,-500.0,0.00010958,2]
[352299732,1739032240030,-1215.64,0.00010958,2]
[352299734,1739032240039,-500.0,0.00010958,2]
[352299736,1739032240049,-990.35,0.00010958,2]
[352299738,1739032240059,-602.4,0.00010958,2]
[352299740,1739032240069,-500.0,0.00010958,2]
[352299742,1739032240078,-1683.08,0.00010958,2]
[352299744,1739032240087,-500.0,0.00010958,2]
[352299746,1739032240097,-632.46,0.00010958,2]
[352299749,1739032240108,-3184.82,0.00010958,2]
[352299750,1739032240118,-741.16,0.00010958,2]
[352299752,1739032240127,-973.48,0.00010958,2]
[352299755,1739032240137,-819.82,0.00010958,2]
[352299757,1739032240146,-500.0,0.00010958,2]
[352299758,1739032240156,-1000.0,0.00011,11]
[352299761,1739032240166,-153.4425861,0.00011,2]
[352299763,1739032240175,-238.2500979,0.00011,2]
[352299765,1739032240185,-153.0,0.00011,2]
[352299767,1739032240194,-154.5736464,0.00011,2]
[352299769,1739032240203,-288.0181227,0.00011,2]
[352299771,1739032240213,-154.5736464,0.00011,2]
[352299773,1739032240222,-153.0,0.00011,2]
[352299775,1739032240232,-215.7975175,0.00011,2]
[352299777,1739032240242,-215.7975175,0.00011,2]
[352299779,1739032240251,-154.5736464,0.00011,2]
[352299781,1739032240260,-153.0,0.00011,2]
[352299783,1739032240269,-881.5162197,0.00011019,2]
[352299786,1739032240286,-500.0,0.00011094,2]
[352299788,1739032240300,-500.0,0.00011094,2]
[352299790,1739032240310,-997.71,0.00011094,2]
[352299792,1739032240320,-1013.77,0.00011094,2]
[352299794,1739032240331,-945.68,0.00011094,2]
[352299796,1739032240341,-500.0,0.00011094,2]
[352299798,1739032240351,-683.06,0.00011094,2]
[352299801,1739032240361,-500.0,0.00011094,2]
[352299803,1739032240371,-500.0,0.00011094,2]
[352299805,1739032240381,-500.0,0.00011094,2]
[352299807,1739032240391,-500.0,0.00011094,2]
[352299809,1739032240402,-500.0,0.00011095,2]
[352299811,1739032240412,-500.0,0.00011095,2]
[352299813,1739032240422,-500.0,0.00011095,2]
[352299815,1739032240433,-500.0,0.00011095,2]
[352299817,1739032240443,-500.0,0.00011095,2]
[352299819,1739032240453,-500.0,0.00011095,2]
[352299821,1739032240464,-500.0,0.00011095,2]
[352299823,1739032240473,-696.01,0.00011095,2]
[352299825,1739032240483,-500.0,0.00011095,2]
[352299827,1739032240493,-628.11,0.00011095,2]
[352299830,1739032240504,-500.0,0.00011095,2]
[352299832,1739032240514,-500.0,0.00011095,2]
[352299834,1739032240525,-500.0,0.00011095,2]
[352299836,1739032240535,-500.0,0.00011095,2]
[352299838,1739032240546,-722.74,0.00011095,2]
[352299840,1739032240557,-500.0,0.00011095,2]
[352299842,1739032240567,-500.0,0.00011095,2]
[352299844,1739032240577,-500.0,0.00011095,2]
[352299846,1739032240587,-500.0,0.00011095,2]
[352299848,1739032240597,-518.41079878,0.00011095,2]
[352299850,1739032240607,-799.13,0.00011095,2]
[352299852,1739032240617,-500.0,0.00011095,2]
[352299854,1739032240626,-500.0,0.00011095,2]
[352299856,1739032240636,-500.0,0.00011095,2]
[352299858,1739032240646,-500.0,0.00011095,2]
[352299860,1739032240656,-500.0,0.00011095,2]
[352299862,1739032240666,-500.0,0.00011095,2]
[352299864,1739032240676,-500.0,0.00011095,2]
[352299866,1739032240686,-500.0,0.00011095,2]
[352299868,1739032240696,-500.0,0.00011095,2]
[352299870,1739032240706,-561.36332075,0.00011095,2]